[Event "MČR juniorů a juniorek v rapid šachu 2023"]
[Site "Czech Republic"]
[Date "2023.09.24"]
[Round "8.12"]
[White "Rybacek, Martin"]
[Black "Mrkvan, Frantisek"]
[Result "0-1"]
[TimeControl "20 min + 5 sec per move"]
[WhiteFideId "23739266"]
[BlackFideId "23721626"]
[WhiteElo "1755"]
[BlackElo "1601"]

1. d4 {[%clk 00:20:07]} {[%emt 00:00:03]} Nf6 {[%clk 00:20:01]} {[%emt
00:00:09]} 2. Nf3 {[%clk 00:20:08]} {[%emt 00:00:04]} g6 {[%clk 00:19:58]}
{[%emt 00:00:07]} 3. g3 {[%clk 00:20:11]} {[%emt 00:00:02]} Bg7 {[%clk
00:19:58]} {[%emt 00:00:05]} 4. Bg2 {[%clk 00:20:15]} {[%emt 00:00:01]} O-O
{[%clk 00:20:01]} {[%emt 00:00:02]} 5. O-O {[%clk 00:20:17]} {[%emt 00:00:03]}
d6 {[%clk 00:19:42]} {[%emt 00:00:24]} 6. c4 {[%clk 00:20:20]} {[%emt
00:00:02]} c6 {[%clk 00:19:40]} {[%emt 00:00:07]} 7. Nc3 {[%clk 00:20:11]}
{[%emt 00:00:15]} Bf5 {[%clk 00:19:15]} {[%emt 00:00:30]} 8. Re1 {[%clk
00:19:11]} {[%emt 00:01:05]} Ne4 {[%clk 00:19:11]} {[%emt 00:00:08]} 9. Qb3
{[%clk 00:17:58]} {[%emt 00:01:18]} Qc7 {[%clk 00:17:00]} {[%emt 00:02:17]} 10.
Nh4 {[%clk 00:15:57]} {[%emt 00:02:05]} Nxc3 {[%clk 00:16:58]} {[%emt
00:00:08]} 11. bxc3 {[%clk 00:15:42]} {[%emt 00:00:20]} Bc8 {[%clk 00:17:00]}
{[%emt 00:00:02]} 12. Bf4 {[%clk 00:13:29]} {[%emt 00:02:18]} Nd7 {[%clk
00:13:56]} {[%emt 00:03:10]} 13. c5 {[%clk 00:12:27]} {[%emt 00:01:07]} e5
{[%clk 00:13:41]} {[%emt 00:00:19]} 14. cxd6 {[%clk 00:12:11]} {[%emt
00:00:22]} Qxd6 {[%clk 00:13:44]} {[%emt 00:00:02]} 15. dxe5 {[%clk 00:11:42]}
{[%emt 00:00:34]} Bxe5 {[%clk 00:13:46]} {[%emt 00:00:03]} 16. Bxe5 {[%clk
00:10:36]} {[%emt 00:01:11]} Nxe5 {[%clk 00:13:13]} {[%emt 00:00:37]} 17. Rad1
{[%clk 00:10:13]} {[%emt 00:00:28]} Qc5 {[%clk 00:13:17]} 18. Qb4 {[%clk
00:10:11]} {[%emt 00:00:07]} Qxb4 {[%clk 00:12:31]} {[%emt 00:00:51]} 19. cxb4
{[%clk 00:10:16]} Be6 {[%clk 00:12:27]} {[%emt 00:00:09]} 20. Nf3 {[%clk
00:09:11]} {[%emt 00:01:09]} Nxf3+ {[%clk 00:12:16]} {[%emt 00:00:16]} 21. Bxf3
{[%clk 00:09:15]} {[%emt 00:00:01]} Bxa2 {[%clk 00:12:12]} {[%emt 00:00:09]} 22.
Rd7 {[%clk 00:09:13]} {[%emt 00:00:08]} Rab8 {[%clk 00:12:03]} {[%emt
00:00:14]} 23. b5 {[%clk 00:08:23]} {[%emt 00:00:55]} cxb5 {[%clk 00:11:06]}
{[%emt 00:01:02]} 24. Bxb7 {[%clk 00:08:09]} {[%emt 00:00:19]} Bc4 {[%clk
00:07:55]} {[%emt 00:03:16]} 25. Ba6 {[%clk 00:07:00]} {[%emt 00:01:14]} Ra8
{[%clk 00:05:06]} {[%emt 00:02:53]} 26. e3 {[%clk 00:06:07]} {[%emt 00:00:59]}
Rfd8 {[%clk 00:04:32]} {[%emt 00:00:38]} 27. Rc7 {[%clk 00:04:47]} {[%emt
00:01:25]} Rd6 {[%clk 00:04:08]} {[%emt 00:00:29]} 28. Ra1 {[%clk 00:04:22]}
{[%emt 00:00:30]} Rad8 {[%clk 00:02:49]} {[%emt 00:01:25]} 29. Rxa7 {[%clk
00:03:56]} {[%emt 00:00:31]} Rd1+ {[%clk 00:02:51]} {[%emt 00:00:03]} 30. Rxd1
{[%clk 00:04:00]} Rxd1+ {[%emt 00:00:02]} 31. Kg2 Ra1 {[%clk 00:02:32]} {[%emt
00:00:28]} 32. Ra8+ {[%clk 00:03:09]} {[%emt 00:01:01]} Kg7 33. Bb7 Rxa8 {[%clk
00:02:40]} 34. Bxa8 {[%clk 00:03:17]} f5 {[%clk 00:02:44]} 35. e4 {[%clk
00:01:57]} {[%emt 00:01:25]} b4 {[%clk 00:02:25]} {[%emt 00:00:24]} 36. exf5
{[%clk 00:01:16]} {[%emt 00:00:46]} gxf5 {[%clk 00:02:21]} {[%emt 00:00:10]} 37.
Bc6 {[%clk 00:01:00]} {[%emt 00:00:21]} b3 {[%clk 00:02:04]} {[%emt 00:00:22]}
38. Ba4 {[%clk 00:01:04]} b2 {[%clk 00:02:08]} {[%emt 00:00:01]} 39. Bc2 {[%clk
00:01:09]} Ba2 {[%clk 00:01:37]} {[%emt 00:00:36]} 40. Bxf5 {[%clk 00:01:05]}
{[%emt 00:00:10]} b1=Q {[%clk 00:01:41]} 41. Bxb1 {[%clk 00:01:09]} Bxb1 {[%clk
00:01:45]} 42. Kf3 {[%clk 00:01:00]} {[%emt 00:00:13]} Kf6 {[%clk 00:01:46]}
{[%emt 00:00:04]} 43. Kf4 {[%clk 00:01:01]} {[%emt 00:00:04]} Kg6 {[%clk
00:01:01]} {[%emt 00:00:51]} 44. Kg4 {[%clk 00:00:50]} {[%emt 00:00:16]} Bf5+
{[%clk 00:00:38]} {[%emt 00:00:27]} 45. Kf4 {[%clk 00:00:31]} {[%emt 00:00:24]}
Bd7 {[%clk 00:00:30]} {[%emt 00:00:12]} 46. g4 {[%clk 00:00:23]} {[%emt
00:00:14]} Kf6 {[%clk 00:00:23]} {[%emt 00:00:12]} 47. h4 {[%clk 00:00:15]}
{[%emt 00:00:13]} Kg6 {[%clk 00:00:27]} {[%emt 00:00:02]} 48. Kg3 {[%emt
00:00:44]} 0-1

[Event "MČR juniorů a juniorek v rapid šachu 2023"]
[Site "Czech Republic"]
[Date "2023.09.24"]
[Round "8.13"]
[White "Strnadova, Monika"]
[Black "Pejrimovsky, Tadeas Rubel"]
[Result "1-0"]
[TimeControl "20 min + 5 sec per move"]
[WhiteFideId "23701668"]
[BlackFideId "23709537"]
[WhiteElo "1728"]
[BlackElo "1679"]

1. d4 {[%clk 00:20:08]} {[%emt 00:00:02]} Nf6 {[%clk 00:20:07]} {[%emt
00:00:03]} 2. Bf4 {[%clk 00:20:12]} {[%emt 00:00:02]} g6 {[%clk 00:20:09]}
{[%emt 00:00:03]} 3. Nc3 {[%clk 00:20:16]} {[%emt 00:00:01]} Bg7 {[%clk
00:20:12]} {[%emt 00:00:02]} 4. Qd2 {[%clk 00:20:19]} d5 {[%clk 00:20:00]}
{[%emt 00:00:17]} 5. O-O-O {[%clk 00:20:21]} {[%emt 00:00:03]} Nbd7 {[%clk
00:18:38]} {[%emt 00:01:27]} 6. Nb5 {[%clk 00:19:07]} {[%emt 00:01:19]} e5
{[%clk 00:18:05]} {[%emt 00:00:38]} 7. dxe5 {[%clk 00:19:09]} {[%emt 00:00:04]}
Nh5 {[%clk 00:18:06]} {[%emt 00:00:03]} 8. e6 {[%clk 00:18:52]} {[%emt
00:00:22]} Ne5 {[%clk 00:14:56]} {[%emt 00:03:15]} 9. exf7+ {[%clk 00:16:19]}
{[%emt 00:02:38]} Kxf7 {[%clk 00:11:43]} {[%emt 00:03:19]} 10. Bxe5 {[%clk
00:14:46]} {[%emt 00:01:38]} Bxe5 {[%clk 00:11:46]} {[%emt 00:00:01]} 11. Nf3
{[%clk 00:14:42]} {[%emt 00:00:09]} Bf6 {[%clk 00:10:55]} {[%emt 00:00:56]} 12.
Qxd5+ {[%clk 00:11:37]} {[%emt 00:03:11]} Qxd5 13. Rxd5 {[%clk 00:11:40]} c6
{[%clk 00:10:22]} {[%emt 00:00:27]} 14. Nd6+ {[%clk 00:11:42]} {[%emt
00:00:03]} Ke7 {[%clk 00:09:25]} {[%emt 00:01:02]} 15. Nxc8+ {[%clk 00:10:53]}
{[%emt 00:00:54]} Raxc8 {[%clk 00:09:26]} {[%emt 00:00:05]} 16. Ra5 {[%clk
00:10:21]} {[%emt 00:00:36]} a6 {[%clk 00:08:36]} {[%emt 00:00:55]} 17. e3
{[%clk 00:09:55]} {[%emt 00:00:31]} Rhd8 {[%clk 00:08:37]} {[%emt 00:00:05]} 18.
g4 {[%clk 00:09:36]} {[%emt 00:00:24]} 1-0

[Event "MČR juniorů a juniorek v rapid šachu 2023"]
[Site "Czech Republic"]
[Date "2023.09.24"]
[Round "8.14"]
[White "Martinkovic, Adam"]
[Black "Dobsa, Emma"]
[Result "0-1"]
[TimeControl "20 min + 5 sec per move"]
[WhiteFideId "23728019"]
[BlackFideId "23709391"]
[WhiteElo "1807"]
[BlackElo "1480"]

1. c4 {[%clk 00:20:08]} {[%emt 00:00:03]} c6 {[%clk 00:20:10]} 2. d4 {[%clk
00:20:07]} {[%emt 00:00:06]} d5 {[%clk 00:20:14]} 3. Nf3 {[%clk 00:20:08]}
{[%emt 00:00:04]} Nf6 {[%clk 00:20:18]} 4. e3 {[%clk 00:19:59]} {[%emt
00:00:14]} Bf5 {[%clk 00:20:18]} {[%emt 00:00:04]} 5. Nc3 {[%clk 00:19:54]}
{[%emt 00:00:10]} e6 {[%clk 00:20:19]} {[%emt 00:00:04]} 6. Be2 {[%clk
00:19:43]} {[%emt 00:00:16]} Bd6 {[%clk 00:20:00]} {[%emt 00:00:24]} 7. a3
{[%clk 00:19:28]} {[%emt 00:00:20]} a5 {[%clk 00:19:46]} {[%emt 00:00:20]} 8.
Bd2 {[%clk 00:18:54]} {[%emt 00:00:38]} O-O {[%clk 00:19:22]} {[%emt 00:00:29]}
9. O-O {[%clk 00:18:53]} {[%emt 00:00:07]} Nbd7 {[%clk 00:19:23]} {[%emt
00:00:03]} 10. h3 {[%clk 00:18:21]} {[%emt 00:00:37]} h6 {[%clk 00:19:25]}
{[%emt 00:00:03]} 11. c5 {[%clk 00:17:56]} {[%emt 00:00:29]} Bc7 {[%clk
00:19:28]} {[%emt 00:00:02]} 12. b4 {[%clk 00:17:58]} {[%emt 00:00:04]} axb4
{[%clk 00:19:21]} {[%emt 00:00:12]} 13. axb4 {[%clk 00:18:01]} {[%emt
00:00:01]} b6 {[%clk 00:18:57]} {[%emt 00:00:30]} 14. Na4 {[%clk 00:17:02]}
{[%emt 00:01:05]} bxc5 {[%clk 00:17:16]} {[%emt 00:01:46]} 15. Nxc5 {[%clk
00:16:43]} {[%emt 00:00:23]} Nxc5 {[%clk 00:16:58]} {[%emt 00:00:23]} 16. bxc5
{[%clk 00:16:34]} {[%emt 00:00:13]} Qe7 {[%clk 00:16:42]} {[%emt 00:00:22]} 17.
Bc3 {[%clk 00:16:18]} {[%emt 00:00:21]} Nd7 {[%clk 00:16:28]} {[%emt 00:00:18]}
18. Qd2 {[%clk 00:15:12]} {[%emt 00:01:11]} e5 {[%clk 00:15:59]} {[%emt
00:00:35]} 19. Nxe5 {[%clk 00:14:39]} {[%emt 00:00:38]} Nxe5 {[%clk 00:16:01]}
{[%emt 00:00:03]} 20. dxe5 {[%clk 00:14:42]} {[%emt 00:00:02]} Bxe5 {[%clk
00:15:41]} {[%emt 00:00:25]} 21. Bd4 {[%clk 00:14:22]} {[%emt 00:00:25]} Rfe8
{[%clk 00:15:07]} {[%emt 00:00:39]} 22. Bd3 {[%clk 00:14:09]} {[%emt 00:00:17]}
Bd7 {[%clk 00:15:03]} {[%emt 00:00:09]} 23. Rfe1 {[%clk 00:13:44]} {[%emt
00:00:30]} Rxa1 {[%clk 00:13:10]} {[%emt 00:01:59]} 24. Rxa1 {[%clk 00:13:43]}
{[%emt 00:00:06]} Bxh3 {[%clk 00:12:14]} {[%emt 00:01:02]} 25. gxh3 {[%clk
00:13:09]} {[%emt 00:00:38]} Qg5+ {[%clk 00:12:17]} {[%emt 00:00:02]} 26. Kf1
{[%clk 00:12:29]} {[%emt 00:00:45]} Bxd4 {[%clk 00:12:21]} {[%emt 00:00:02]} 27.
Bh7+ {[%clk 00:12:13]} {[%emt 00:00:26]} Kxh7 {[%clk 00:12:17]} {[%emt
00:00:14]} 28. Qxd4 {[%clk 00:12:13]} {[%emt 00:00:05]} Qf5 {[%clk 00:11:42]}
{[%emt 00:00:39]} 29. Qg4 {[%clk 00:10:56]} {[%emt 00:01:21]} Qd3+ {[%clk
00:11:05]} {[%emt 00:00:43]} 30. Kg1 {[%clk 00:10:29]} {[%emt 00:00:32]} Re6
{[%clk 00:10:56]} {[%emt 00:00:14]} 31. Kh1 {[%clk 00:08:36]} {[%emt 00:01:59]}
Qc2 {[%clk 00:10:26]} {[%emt 00:00:35]} 32. Qf3 {[%clk 00:08:11]} {[%emt
00:00:29]} Rf6 {[%clk 00:10:20]} {[%emt 00:00:12]} 33. Qg3 {[%clk 00:06:44]}
{[%emt 00:01:32]} Rxf2 {[%clk 00:09:57]} {[%emt 00:00:28]} 34. Re1 {[%clk
00:05:44]} {[%emt 00:01:04]} Qe4+ {[%clk 00:09:52]} {[%emt 00:00:12]} 35. Kg1
{[%clk 00:05:39]} {[%emt 00:00:10]} Rf3 {[%clk 00:09:40]} {[%emt 00:00:17]} 36.
Qg4 {[%clk 00:04:25]} {[%emt 00:01:18]} Rxe3 {[%clk 00:09:18]} {[%emt
00:00:28]} 37. Rxe3 {[%clk 00:04:10]} {[%emt 00:00:20]} Qxe3+ {[%clk 00:09:22]}
{[%emt 00:00:01]} 38. Kf1 {[%clk 00:03:57]} {[%emt 00:00:18]} Qe4 {[%clk
00:09:08]} {[%emt 00:00:20]} 39. Qd7 {[%clk 00:03:29]} {[%emt 00:00:32]} Qe6
{[%clk 00:08:50]} {[%emt 00:00:23]} 40. Qd6 {[%clk 00:03:03]} {[%emt 00:00:31]}
Qxh3+ {[%clk 00:08:53]} {[%emt 00:00:02]} 41. Ke1 {[%clk 00:02:58]} {[%emt
00:00:09]} Qe6+ {[%clk 00:08:57]} {[%emt 00:00:02]} 0-1

[Event "MČR juniorů a juniorek v rapid šachu 2023"]
[Site "Czech Republic"]
[Date "2023.09.24"]
[Round "8.15"]
[White "Boff, Vojtech"]
[Black "Merinsky, Vaclav"]
[Result "1-0"]
[TimeControl "20 min + 5 sec per move"]
[WhiteFideId "23733969"]
[BlackFideId "390062"]
[WhiteElo "1632"]
[BlackElo "1869"]

1. d4 {[%clk 00:20:08]} {[%emt 00:00:01]} d6 {[%clk 00:19:42]} {[%emt
00:00:28]} 2. c4 {[%clk 00:20:04]} {[%emt 00:00:08]} Nf6 {[%clk 00:19:17]}
{[%emt 00:00:31]} 3. Nc3 {[%clk 00:19:47]} {[%emt 00:00:22]} Nc6 {[%clk
00:18:45]} {[%emt 00:00:37]} 4. Nf3 {[%clk 00:19:16]} {[%emt 00:00:36]} Bg4
{[%clk 00:18:33]} {[%emt 00:00:16]} 5. e3 {[%clk 00:18:53]} {[%emt 00:00:29]}
e5 {[%clk 00:17:52]} {[%emt 00:00:46]} 6. dxe5 {[%clk 00:18:53]} {[%emt
00:00:05]} Nxe5 {[%clk 00:17:51]} {[%emt 00:00:05]} 7. Be2 {[%clk 00:18:46]}
{[%emt 00:00:13]} Be6 {[%clk 00:15:10]} {[%emt 00:02:46]} 8. Nxe5 {[%clk
00:18:47]} {[%emt 00:00:05]} dxe5 {[%clk 00:15:12]} {[%emt 00:00:02]} 9. O-O
{[%clk 00:18:32]} {[%emt 00:00:20]} Be7 {[%clk 00:14:12]} {[%emt 00:01:05]} 10.
Qb3 {[%clk 00:17:37]} {[%emt 00:00:59]} Qc8 {[%clk 00:13:39]} {[%emt 00:00:36]}
11. Bf3 {[%clk 00:17:03]} {[%emt 00:00:42]} c6 {[%clk 00:13:17]} {[%emt
00:00:27]} 12. e4 {[%clk 00:16:14]} {[%emt 00:00:54]} O-O {[%clk 00:12:49]}
{[%emt 00:00:33]} 13. Bg5 {[%clk 00:15:25]} {[%emt 00:00:54]} b5 {[%clk
00:10:14]} {[%emt 00:02:40]} 14. Bxf6 {[%clk 00:14:42]} {[%emt 00:00:48]} Bxf6
{[%clk 00:10:12]} {[%emt 00:00:07]} 15. Be2 {[%clk 00:14:38]} {[%emt 00:00:09]}
Rb8 {[%clk 00:10:14]} {[%emt 00:00:02]} 16. Qc2 {[%clk 00:14:34]} {[%emt
00:00:09]} bxc4 {[%clk 00:09:58]} {[%emt 00:00:22]} 17. Nd1 {[%clk 00:13:10]}
{[%emt 00:01:28]} Qa6 {[%clk 00:08:18]} {[%emt 00:01:43]} 18. Ne3 {[%clk
00:12:29]} {[%emt 00:00:49]} Rb4 {[%clk 00:06:36]} {[%emt 00:01:44]} 19. Qc3
{[%clk 00:11:36]} {[%emt 00:01:00]} Rfb8 {[%clk 00:05:47]} {[%emt 00:00:54]} 20.
Rfb1 {[%clk 00:11:12]} {[%emt 00:00:30]} Qb5 {[%clk 00:05:24]} {[%emt
00:00:28]} 21. b3 {[%clk 00:11:02]} {[%emt 00:00:15]} Qb7 {[%clk 00:03:10]}
{[%emt 00:02:20]} 22. Bxc4 {[%clk 00:10:56]} {[%emt 00:00:10]} Bxc4 {[%clk
00:03:04]} {[%emt 00:00:11]} 23. Nxc4 {[%clk 00:10:59]} {[%emt 00:00:02]} c5
{[%clk 00:03:01]} {[%emt 00:00:06]} 24. Rd1 {[%clk 00:10:46]} {[%emt 00:00:20]}
Qc7 {[%clk 00:02:55]} {[%emt 00:00:10]} 25. Rd5 {[%clk 00:09:50]} {[%emt
00:01:02]} Rd8 {[%clk 00:02:24]} {[%emt 00:00:34]} 26. Rad1 {[%clk 00:09:16]}
{[%emt 00:00:41]} Rbb8 {[%clk 00:02:24]} {[%emt 00:00:05]} 27. g3 {[%clk
00:08:31]} {[%emt 00:00:49]} h6 {[%clk 00:01:41]} {[%emt 00:00:49]} 28. R1d3
{[%clk 00:07:53]} {[%emt 00:00:43]} Kh7 {[%clk 00:01:25]} {[%emt 00:00:21]} 29.
Qd2 {[%clk 00:07:54]} {[%emt 00:00:04]} g6 {[%clk 00:00:22]} {[%emt 00:01:09]}
30. Rd7 {[%clk 00:07:52]} {[%emt 00:00:06]} Rxd7 {[%clk 00:00:20]} {[%emt
00:00:06]} 31. Rxd7 {[%clk 00:07:55]} {[%emt 00:00:02]} Rd8 {[%clk 00:00:22]}
{[%emt 00:00:04]} 32. Rxc7 {[%clk 00:07:56]} {[%emt 00:00:04]} Rxd2 {[%clk
00:00:24]} {[%emt 00:00:03]} 33. Nxd2 {[%clk 00:08:00]} 1-0

[Event "MČR juniorů a juniorek v rapid šachu 2023"]
[Site "Czech Republic"]
[Date "2023.09.24"]
[Round "8.16"]
[White "Pavlis, Matej"]
[Black "Pejrimovska, Viola Ruby"]
[Result "1-0"]
[TimeControl "20 min + 5 sec per move"]
[WhiteFideId "23735767"]
[BlackFideId "23709529"]
[WhiteElo "1771"]
[BlackElo "1581"]

1. Nf3 {[%clk 00:20:08]} Nf6 {[%clk 00:20:09]} {[%emt 00:00:02]} 2. g3 {[%clk
00:20:11]} {[%emt 00:00:03]} g6 {[%clk 00:20:11]} {[%emt 00:00:02]} 3. Bg2
{[%clk 00:20:14]} Bg7 {[%clk 00:20:15]} {[%emt 00:00:01]} 4. O-O {[%clk
00:20:17]} {[%emt 00:00:02]} O-O {[%clk 00:20:18]} {[%emt 00:00:03]} 5. c4
{[%clk 00:20:19]} {[%emt 00:00:04]} d6 {[%clk 00:20:21]} {[%emt 00:00:02]} 6.
d4 {[%clk 00:20:20]} {[%emt 00:00:04]} c6 {[%clk 00:20:07]} {[%emt 00:00:19]} 7.
Nc3 {[%clk 00:20:23]} {[%emt 00:00:02]} Qa5 {[%clk 00:20:06]} {[%emt 00:00:06]}
8. h3 {[%clk 00:18:51]} {[%emt 00:01:37]} Na6 {[%clk 00:16:16]} {[%emt
00:03:55]} 9. a3 {[%clk 00:18:23]} {[%emt 00:00:33]} Nd7 {[%clk 00:15:20]}
{[%emt 00:01:00]} 10. Bg5 {[%clk 00:16:45]} {[%emt 00:01:43]} f6 {[%clk
00:13:24]} {[%emt 00:02:01]} 11. b4 {[%clk 00:16:31]} {[%emt 00:00:20]} Qc7
{[%clk 00:11:49]} {[%emt 00:01:40]} 12. Be3 {[%clk 00:16:14]} {[%emt 00:00:20]}
e5 {[%clk 00:11:29]} {[%emt 00:00:26]} 13. Rc1 {[%clk 00:16:11]} {[%emt
00:00:08]} f5 {[%clk 00:10:06]} {[%emt 00:01:29]} 14. Ng5 {[%clk 00:11:51]}
{[%emt 00:04:25]} Nb6 {[%clk 00:08:28]} {[%emt 00:01:43]} 15. dxe5 {[%clk
00:11:21]} {[%emt 00:00:35]} dxe5 {[%clk 00:08:27]} {[%emt 00:00:05]} 16. c5
{[%clk 00:11:03]} {[%emt 00:00:25]} Nc4 {[%clk 00:08:12]} {[%emt 00:00:19]} 17.
Qb3 {[%clk 00:11:02]} {[%emt 00:00:06]} Kh8 {[%clk 00:04:45]} {[%emt 00:03:32]}
18. Qxc4 {[%clk 00:11:04]} {[%emt 00:00:03]} f4 {[%clk 00:04:45]} {[%emt
00:00:05]} 19. gxf4 {[%clk 00:11:00]} {[%emt 00:00:09]} exf4 {[%clk 00:04:47]}
{[%emt 00:00:02]} 20. Bd4 {[%clk 00:11:03]} {[%emt 00:00:03]} Qe7 {[%clk
00:04:17]} {[%emt 00:00:35]} 21. Bxg7+ {[%clk 00:11:00]} {[%emt 00:00:08]} Kxg7
{[%clk 00:04:18]} {[%emt 00:00:03]} 22. Qd4+ {[%clk 00:10:34]} {[%emt
00:00:32]} Kh6 {[%clk 00:04:19]} {[%emt 00:00:03]} 23. Nf3 {[%clk 00:10:13]}
{[%emt 00:00:26]} Be6 {[%clk 00:03:51]} {[%emt 00:00:33]} 24. Qd6 {[%clk
00:09:33]} {[%emt 00:00:45]} Qf7 {[%clk 00:02:41]} {[%emt 00:01:15]} 25. Qe5
{[%clk 00:09:06]} {[%emt 00:00:32]} Rae8 {[%clk 00:02:21]} {[%emt 00:00:26]} 26.
Qg5+ {[%clk 00:09:02]} {[%emt 00:00:09]} Kg7 {[%clk 00:02:24]} {[%emt
00:00:02]} 27. Ne4 {[%clk 00:08:37]} {[%emt 00:00:29]} Qg8 {[%clk 00:01:27]}
{[%emt 00:01:02]} 28. Qe5+ {[%clk 00:07:51]} {[%emt 00:00:51]} Kh6 {[%clk
00:01:19]} {[%emt 00:00:13]} 29. Nd6 {[%clk 00:07:52]} {[%emt 00:00:05]} Re7
{[%clk 00:00:39]} {[%emt 00:00:44]} 30. Qg5+ {[%clk 00:07:56]} {[%emt
00:00:02]} 1-0

[Event "MČR juniorů a juniorek v rapid šachu 2023"]
[Site "Czech Republic"]
[Date "2023.09.24"]
[Round "8.17"]
[White "Dvorak, Jan"]
[Black "Husa, Daniel"]
[Result "0-1"]
[TimeControl "20 min + 5 sec per move"]
[WhiteFideId "23730722"]
[BlackFideId "393487"]
[WhiteElo "1624"]
[BlackElo "1760"]

1. e4 {[%clk 00:20:02]} {[%emt 00:00:08]} c5 {[%clk 00:20:09]} {[%emt
00:00:02]} 2. Nf3 {[%clk 00:20:04]} {[%emt 00:00:03]} e6 {[%clk 00:20:13]} 3.
c3 {[%clk 00:20:06]} {[%emt 00:00:04]} Nf6 {[%clk 00:20:16]} {[%emt 00:00:02]}
4. Qc2 {[%clk 00:19:49]} {[%emt 00:00:21]} Nc6 {[%clk 00:20:14]} {[%emt
00:00:08]} 5. d4 {[%clk 00:19:35]} {[%emt 00:00:19]} cxd4 {[%clk 00:19:46]}
{[%emt 00:00:33]} 6. cxd4 {[%clk 00:19:36]} {[%emt 00:00:04]} Bb4+ {[%clk
00:19:04]} {[%emt 00:00:47]} 7. Bd2 {[%clk 00:19:19]} {[%emt 00:00:21]} Qb6
{[%clk 00:18:45]} {[%emt 00:00:25]} 8. e5 {[%clk 00:17:14]} {[%emt 00:02:09]}
Nd5 {[%clk 00:18:39]} {[%emt 00:00:11]} 9. Bxb4 {[%clk 00:16:28]} {[%emt
00:00:51]} Ndxb4 {[%clk 00:17:37]} {[%emt 00:01:08]} 10. Qd2 {[%clk 00:16:13]}
{[%emt 00:00:20]} Nxd4 {[%clk 00:17:12]} {[%emt 00:00:30]} 11. Nxd4 {[%clk
00:15:17]} {[%emt 00:01:00]} Qxd4 {[%clk 00:17:12]} {[%emt 00:00:05]} 12. Qxd4
{[%clk 00:15:02]} {[%emt 00:00:21]} Nc2+ {[%clk 00:17:16]} 13. Kd2 {[%clk
00:15:01]} {[%emt 00:00:06]} Nxd4 {[%clk 00:17:19]} {[%emt 00:00:02]} 14. Nc3
{[%clk 00:14:40]} {[%emt 00:00:25]} f5 {[%clk 00:13:23]} {[%emt 00:04:01]} 15.
Kd3 {[%clk 00:14:29]} {[%emt 00:00:16]} Nc6 {[%clk 00:13:14]} {[%emt 00:00:13]}
16. f4 {[%clk 00:13:25]} {[%emt 00:01:09]} a6 {[%clk 00:12:43]} {[%emt
00:00:37]} 17. Na4 {[%clk 00:12:40]} {[%emt 00:00:50]} b5 {[%clk 00:12:02]}
{[%emt 00:00:46]} 18. Nc5 {[%clk 00:12:37]} {[%emt 00:00:07]} Ke7 {[%clk
00:11:49]} {[%emt 00:00:18]} 19. Rd1 {[%clk 00:11:16]} {[%emt 00:01:27]} Nb4+
{[%clk 00:10:32]} {[%emt 00:01:22]} 20. Ke3 {[%clk 00:10:00]} {[%emt 00:01:21]}
Nd5+ {[%clk 00:10:29]} {[%emt 00:00:08]} 21. Kf3 {[%clk 00:09:53]} {[%emt
00:00:12]} Rd8 {[%clk 00:09:34]} {[%emt 00:01:00]} 22. Bd3 {[%clk 00:09:14]}
{[%emt 00:00:44]} d6 {[%clk 00:08:52]} {[%emt 00:00:47]} 23. exd6+ {[%clk
00:08:59]} {[%emt 00:00:20]} Kxd6 {[%clk 00:08:27]} {[%emt 00:00:30]} 24. Nb3
{[%clk 00:08:40]} {[%emt 00:00:23]} Bb7 {[%emt 00:00:44]} 25. Kg3 {[%clk
00:08:03]} {[%emt 00:00:41]} Re8 {[%clk 00:06:30]} {[%emt 00:01:24]} 26. Na5
{[%clk 00:07:26]} {[%emt 00:00:44]} Bc6 {[%clk 00:06:04]} {[%emt 00:00:30]} 27.
Rhe1 {[%clk 00:06:04]} {[%emt 00:01:27]} Rac8 {[%clk 00:05:47]} {[%emt
00:00:21]} 28. Re5 {[%clk 00:05:12]} {[%emt 00:00:58]} g5 {[%clk 00:05:24]}
{[%emt 00:00:28]} 29. Nxc6 {[%clk 00:04:14]} {[%emt 00:01:02]} Rxc6 {[%clk
00:04:56]} {[%emt 00:00:34]} 30. Kf2 {[%clk 00:03:32]} {[%emt 00:00:46]} gxf4
{[%clk 00:04:17]} {[%emt 00:00:45]} 31. Re2 {[%clk 00:02:34]} {[%emt 00:01:03]}
Rf8 {[%clk 00:03:11]} {[%emt 00:01:11]} 32. Bc2 {[%clk 00:01:57]} {[%emt
00:00:42]} Rc5 {[%clk 00:01:55]} {[%emt 00:01:21]} 33. Bb3 {[%clk 00:01:22]}
{[%emt 00:00:40]} Rd8 {[%clk 00:01:41]} {[%emt 00:00:19]} 34. Rde1 {[%clk
00:00:48]} {[%emt 00:00:38]} Re8 {[%clk 00:01:08]} {[%emt 00:00:38]} 35. Rd2
{[%clk 00:00:28]} {[%emt 00:00:25]} a5 {[%clk 00:01:03]} {[%emt 00:00:11]} 36.
a3 {[%clk 00:00:25]} {[%emt 00:00:08]} a4 {[%clk 00:00:58]} {[%emt 00:00:10]}
37. Ba2 {[%clk 00:00:28]} {[%emt 00:00:02]} Rec8 {[%clk 00:00:56]} {[%emt
00:00:06]} 38. Bb1 {[%clk 00:00:17]} {[%emt 00:00:17]} Rc1 {[%clk 00:00:51]}
{[%emt 00:00:09]} 39. Ba2 {[%clk 00:00:11]} {[%emt 00:00:12]} Rxe1 {[%clk
00:00:49]} {[%emt 00:00:07]} 40. Kxe1 {[%clk 00:00:14]} Rc1+ {[%clk 00:00:46]}
{[%emt 00:00:09]} 41. Kf2 {[%clk 00:00:17]} {[%emt 00:00:02]} Rc5 {[%clk
00:00:33]} {[%emt 00:00:18]} 42. Kf3 {[%clk 00:00:15]} {[%emt 00:00:07]} e5
{[%clk 00:00:31]} {[%emt 00:00:07]} 43. Kf2 {[%clk 00:00:08]} {[%emt 00:00:12]}
e4 {[%clk 00:00:30]} {[%emt 00:00:06]} 44. Re2 {[%clk 00:00:09]} {[%emt
00:00:04]} Ke5 {[%clk 00:00:23]} {[%emt 00:00:12]} 45. g3 {[%clk 00:00:09]}
{[%emt 00:00:05]} f3 {[%clk 00:00:23]} {[%emt 00:00:05]} 46. Re1 {[%clk
00:00:11]} {[%emt 00:00:03]} Rc2+ {[%clk 00:00:26]} {[%emt 00:00:02]} 47. Kf1
{[%clk 00:00:12]} {[%emt 00:00:05]} Rxb2 {[%clk 00:00:26]} {[%emt 00:00:04]}
0-1